[Event "*** Titled Tuesday Blitz"]
[Site "Chess.com"]
[Date "2020.04.07"]
[Round "9"]
[White "Ariadna_Atreides"]
[Black "ShadyH9"]
[Result "0-1"]
[WhiteElo "2036"]
[BlackElo "2269"]
[TimeControl "180+1"]
[EndTime "14:47:48 PDT"]
[Termination "ShadyH9 won on time"]

1. d4 {[%clk 0:03:00.9]} 1... Nf6 {[%clk 0:02:59.6]} 2. Nf3 {[%clk 0:03:00.4]}
2... g6 {[%clk 0:02:59.1]} 3. c4 {[%clk 0:03:00.1]} 3... Bg7 {[%clk 0:02:59.3]}
4. Nc3 {[%clk 0:03:00.7]} 4... O-O {[%clk 0:02:59]} 5. e4 {[%clk 0:03:00.4]}
5... d6 {[%clk 0:02:59.4]} 6. Be2 {[%clk 0:03:00.8]} 6... e5 {[%clk 0:02:59.9]}
7. d5 {[%clk 0:03:00.5]} 7... a5 {[%clk 0:02:59.4]} 8. Bg5 {[%clk 0:02:59.9]}
8... h6 {[%clk 0:02:57.8]} 9. Bh4 {[%clk 0:03:00.5]} 9... Na6 {[%clk 0:02:58.3]}
10. Nd2 {[%clk 0:03:01]} 10... Bd7 {[%clk 0:02:57.8]} 11. O-O {[%clk 0:03:00.9]}
11... Qe8 {[%clk 0:02:58.1]} 12. b3 {[%clk 0:02:56.2]} 12... Nh7 {[%clk
0:02:57.8]} 13. f3 {[%clk 0:02:52.4]} 13... h5 {[%clk 0:02:57.7]} 14. a3 {[%clk
0:02:50.9]} 14... Bh6 {[%clk 0:02:57.7]} 15. Bf2 {[%clk 0:02:49.8]} 15... Qe7
{[%clk 0:02:43.9]} 16. Rb1 {[%clk 0:02:45.9]} 16... Bf4 {[%clk 0:02:26.9]} 17.
g3 {[%clk 0:02:17.1]} 17... Bh6 {[%clk 0:02:06.4]} 18. Qc2 {[%clk 0:01:54.7]}
18... Bh3 {[%clk 0:02:05.5]} 19. Rfd1 {[%clk 0:01:53.7]} 19... f5 {[%clk
0:02:03.1]} 20. Bf1 {[%clk 0:01:49.5]} 20... Bxf1 {[%clk 0:02:02.6]} 21. Rxf1
{[%clk 0:01:38.2]} 21... f4 {[%clk 0:02:03]} 22. Kg2 {[%clk 0:01:11.7]} 22...
Qd7 {[%clk 0:01:27.9]} 23. Ne2 {[%clk 0:01:07.8]} 23... Rf7 {[%clk 0:01:06.6]}
24. gxf4 {[%clk 0:00:58.7]} 24... Bxf4 {[%clk 0:00:56.6]} 25. Nxf4 {[%clk
0:00:54]} 25... Rxf4 {[%clk 0:00:57.5]} 26. Bg3 {[%clk 0:00:46.3]} 26... Rf7
{[%clk 0:00:50]} 27. h4 {[%clk 0:00:40.9]} 27... Raf8 {[%clk 0:00:49]} 28. Qd3
{[%clk 0:00:38.7]} 28... g5 {[%clk 0:00:47.3]} 29. hxg5 {[%clk 0:00:21.6]} 29...
Nxg5 {[%clk 0:00:48.2]} 30. Rh1 {[%clk 0:00:21.4]} 30... Rg7 {[%clk 0:00:19.7]}
31. Rxh5 {[%clk 0:00:18.8]} 31... Qf7 {[%clk 0:00:19.5]} 32. Rbh1 {[%clk
0:00:17]} 32... Qg6 {[%clk 0:00:19.7]} 33. Rh8+ {[%clk 0:00:15.9]} 33... Kf7
{[%clk 0:00:20.3]} 34. Rxf8+ {[%clk 0:00:14.4]} 34... Kxf8 {[%clk 0:00:21.2]}
35. Rh8+ {[%clk 0:00:09.6]} 35... Kf7 {[%clk 0:00:20.4]} 36. Qe3 {[%clk
0:00:07.3]} 36... Nc5 {[%clk 0:00:14.8]} 37. Nf1 {[%clk 0:00:05.9]} 37... Nh7
{[%clk 0:00:11]} 38. Rc8 {[%clk 0:00:04.6]} 38... Kf6 {[%clk 0:00:09.1]} 39. b4
{[%clk 0:00:03.6]} 39... a4 {[%clk 0:00:08.7]} 40. bxc5 {[%clk 0:00:03.2]} 40...
Ng5 {[%clk 0:00:08.4]} 41. cxd6 {[%clk 0:00:01.7]} 41... cxd6 {[%clk 0:00:09.3]}
42. Rf8+ {[%clk 0:00:01.6]} 42... Ke7 {[%clk 0:00:08.8]} 43. Rb8 {[%clk
0:00:02]} 43... Kf6 {[%clk 0:00:07.5]} 44. c5 {[%clk 0:00:02.3]} 44... Qh5
{[%clk 0:00:07.3]} 0-1

[Event "*** Titled Tuesday Blitz"]
[Site "Chess.com"]
[Date "2020.04.07"]
[Round "9"]
[White "HElissalt"]
[Black "northridgehawk"]
[Result "1-0"]
[WhiteElo "2150"]
[BlackElo "2288"]
[TimeControl "180+1"]
[EndTime "14:47:51 PDT"]
[Termination "HElissalt won on time"]

1. d4 {[%clk 0:03:00.9]} 1... Nf6 {[%clk 0:02:44.1]} 2. c4 {[%clk 0:02:59.6]}
2... g6 {[%clk 0:02:43.4]} 3. Nc3 {[%clk 0:02:58.5]} 3... d5 {[%clk 0:02:43.9]}
4. cxd5 {[%clk 0:02:57.3]} 4... Nxd5 {[%clk 0:02:44.8]} 5. Bd2 {[%clk
0:02:57.2]} 5... Nb6 {[%clk 0:02:45.1]} 6. Bg5 {[%clk 0:02:21.7]} 6... Bg7
{[%clk 0:02:41.5]} 7. e3 {[%clk 0:02:21.1]} 7... c5 {[%clk 0:02:31.4]} 8. dxc5
{[%clk 0:02:15.9]} 8... Bxc3+ {[%clk 0:02:28.9]} 9. bxc3 {[%clk 0:02:12.2]} 9...
Qxd1+ {[%clk 0:02:29.8]} 10. Rxd1 {[%clk 0:02:11.3]} 10... N6d7 {[%clk 0:02:29]}
11. Bb5 {[%clk 0:02:04.8]} 11... Nc6 {[%clk 0:02:03.8]} 12. Nf3 {[%clk
0:01:59.1]} 12... f6 {[%clk 0:02:02.3]} 13. Bh4 {[%clk 0:01:25.4]} 13... Nxc5
{[%clk 0:02:00.6]} 14. O-O {[%clk 0:01:23.8]} 14... Bd7 {[%clk 0:01:59.4]} 15.
Nd4 {[%clk 0:01:05.5]} 15... O-O-O {[%clk 0:01:51.1]} 16. Bxc6 {[%clk
0:00:59.7]} 16... Bxc6 {[%clk 0:01:50.1]} 17. f3 {[%clk 0:00:59]} 17... Ba4
{[%clk 0:01:32.3]} 18. Rb1 {[%clk 0:00:52.1]} 18... a6 {[%clk 0:01:31.3]} 19. e4
{[%clk 0:00:41.7]} 19... Rhf8 {[%clk 0:01:28.4]} 20. Bf2 {[%clk 0:00:38.6]}
20... Bd7 {[%clk 0:01:03.2]} 21. Nb3 {[%clk 0:00:23.6]} 21... Na4 {[%clk
0:00:50.5]} 22. Na5 {[%clk 0:00:19.2]} 22... b5 {[%clk 0:00:38]} 23. c4 {[%clk
0:00:19]} 23... Kb8 {[%clk 0:00:32.2]} 24. Rfc1 {[%clk 0:00:19]} 24... Rc8
{[%clk 0:00:30.4]} 25. cxb5 {[%clk 0:00:18.7]} 25... Rxc1+ {[%clk 0:00:29.9]}
26. Rxc1 {[%clk 0:00:18.8]} 26... axb5 {[%clk 0:00:30]} 27. Nc6+ {[%clk
0:00:18]} 27... Bxc6 {[%clk 0:00:27.2]} 28. Rxc6 {[%clk 0:00:18.6]} 28... Kb7
{[%clk 0:00:27.8]} 29. Re6 {[%clk 0:00:18.4]} 29... Rf7 {[%clk 0:00:27.4]} 30.
Bd4 {[%clk 0:00:18.5]} 30... Kc7 {[%clk 0:00:25.7]} 31. Kf2 {[%clk 0:00:18]}
31... Kd7 {[%clk 0:00:25.9]} 32. Ra6 {[%clk 0:00:17.4]} 32... e5 {[%clk
0:00:23.9]} 33. Ra7+ {[%clk 0:00:16.7]} 33... Ke6 {[%clk 0:00:24.2]} 34. Rxf7
{[%clk 0:00:16.9]} 34... Kxf7 {[%clk 0:00:25.1]} 35. Ba1 {[%clk 0:00:16.2]}
35... Ke6 {[%clk 0:00:24.3]} 36. Ke3 {[%clk 0:00:16.4]} 36... Kd6 {[%clk
0:00:21.9]} 37. f4 {[%clk 0:00:16.6]} 37... Nb6 {[%clk 0:00:21.2]} 38. fxe5+
{[%clk 0:00:15.9]} 38... fxe5 {[%clk 0:00:22.1]} 39. Bc3 {[%clk 0:00:14.6]}
39... Nc4+ {[%clk 0:00:19.3]} 40. Kd3 {[%clk 0:00:14.2]} 40... Kc5 {[%clk
0:00:19.6]} 41. Be1 {[%clk 0:00:11]} 41... b4 {[%clk 0:00:19.6]} 42. Bf2+ {[%clk
0:00:11.1]} 42... Kb5 {[%clk 0:00:19.4]} 43. Bg3 {[%clk 0:00:10.9]} 43... g5
{[%clk 0:00:13.9]} 44. h3 {[%clk 0:00:10.7]} 44... h5 {[%clk 0:00:14.1]} 45. Bh2
{[%clk 0:00:10.7]} 45... Kc5 {[%clk 0:00:02.1]} 46. Bg1+ {[%clk 0:00:10.3]}
46... Kb5 {[%clk 0:00:02.6]} 47. Bh2 {[%clk 0:00:10.4]} 1-0

[Event "*** Titled Tuesday Blitz"]
[Site "Chess.com"]
[Date "2020.04.07"]
[Round "9"]
[White "imdvb6307"]
[Black "wild_cat99"]
[Result "0-1"]
[WhiteElo "2387"]
[BlackElo "2527"]
[TimeControl "180+1"]
[EndTime "14:47:52 PDT"]
[Termination "wild_cat99 won on time"]

1. c4 {[%clk 0:03:00]} 1... Nf6 {[%clk 0:03:00.3]} 2. Nc3 {[%clk 0:02:59.5]}
2... d5 {[%clk 0:03:00.7]} 3. cxd5 {[%clk 0:02:59]} 3... Nxd5 {[%clk 0:03:01.6]}
4. e4 {[%clk 0:02:59.3]} 4... Nxc3 {[%clk 0:03:01.5]} 5. dxc3 {[%clk 0:02:59.4]}
5... Qxd1+ {[%clk 0:03:02.4]} 6. Kxd1 {[%clk 0:02:59.6]} 6... g6 {[%clk
0:03:02.7]} 7. h4 {[%clk 0:02:53.7]} 7... h5 {[%clk 0:03:02.2]} 8. Nh3 {[%clk
0:02:52.3]} 8... Bg7 {[%clk 0:03:02.2]} 9. Bf4 {[%clk 0:02:49.6]} 9... c5 {[%clk
0:03:01.6]} 10. Be3 {[%clk 0:02:44.7]} 10... b6 {[%clk 0:03:00.2]} 11. Nf4
{[%clk 0:02:42.7]} 11... Bb7 {[%clk 0:02:59.8]} 12. Bb5+ {[%clk 0:02:41]} 12...
Nd7 {[%clk 0:02:52.1]} 13. f3 {[%clk 0:02:32.5]} 13... a6 {[%clk 0:02:49.4]} 14.
Be2 {[%clk 0:02:24.3]} 14... Ne5 {[%clk 0:02:44.4]} 15. a4 {[%clk 0:02:20.4]}
15... O-O-O+ {[%clk 0:02:36.6]} 16. Kc2 {[%clk 0:02:17.8]} 16... a5 {[%clk
0:02:30.6]} 17. b3 {[%clk 0:02:14.5]} 17... Rd7 {[%clk 0:02:09.8]} 18. Nh3
{[%clk 0:02:07.4]} 18... e6 {[%clk 0:01:57.7]} 19. Bb5 {[%clk 0:01:56.8]} 19...
Bc6 {[%clk 0:01:42.6]} 20. Bxc6 {[%clk 0:01:30.1]} 20... Nxc6 {[%clk 0:01:43.5]}
21. Bg5 {[%clk 0:01:30.3]} 21... Ne5 {[%clk 0:01:23.3]} 22. Rad1 {[%clk
0:01:28.5]} 22... c4 {[%clk 0:01:20.4]} 23. Rxd7 {[%clk 0:01:25.6]} 23... cxb3+
{[%clk 0:01:17]} 24. Kxb3 {[%clk 0:01:25]} 24... Nxd7 {[%clk 0:01:17.6]} 25. Be3
{[%clk 0:01:25.1]} 25... Kb7 {[%clk 0:01:15.5]} 26. Rd1 {[%clk 0:01:24.7]} 26...
Rd8 {[%clk 0:00:56.1]} 27. Nf2 {[%clk 0:01:24.1]} 27... Bf6 {[%clk 0:00:33.9]}
28. g3 {[%clk 0:01:20.4]} 28... Kc6 {[%clk 0:00:32.4]} 29. f4 {[%clk 0:01:08.8]}
29... e5 {[%clk 0:00:30.6]} 30. f5 {[%clk 0:01:05.1]} 30... Rg8 {[%clk
0:00:29.3]} 31. fxg6 {[%clk 0:00:20.3]} 31... Rxg6 {[%clk 0:00:30.2]} 32. Nh1
{[%clk 0:00:20.2]} 32... Be7 {[%clk 0:00:28.6]} 33. Rf1 {[%clk 0:00:20.1]} 33...
f6 {[%clk 0:00:25.2]} 34. Rf3 {[%clk 0:00:18.9]} 34... Bc5 {[%clk 0:00:25.1]}
35. Bc1 {[%clk 0:00:17.4]} 35... Rg4 {[%clk 0:00:23.5]} 36. Rf5 {[%clk
0:00:11.6]} 36... Rxe4 {[%clk 0:00:23]} 37. Rxh5 {[%clk 0:00:11.2]} 37... Re1
{[%clk 0:00:22.9]} 38. Rf5 {[%clk 0:00:06.6]} 38... Rxh1 {[%clk 0:00:23]} 39.
Bh6 {[%clk 0:00:04.8]} 39... Rh2 {[%clk 0:00:20.9]} 40. h5 {[%clk 0:00:04.4]}
40... Be7 {[%clk 0:00:16.8]} 41. Bg7 {[%clk 0:00:03.5]} 41... Nc5+ {[%clk
0:00:16.4]} 42. Kc4 {[%clk 0:00:02.9]} 42... Nxa4 {[%clk 0:00:16.3]} 43. h6
{[%clk 0:00:02.4]} 43... b5+ {[%clk 0:00:16.4]} 44. Kd3 {[%clk 0:00:01.3]} 44...
Kd6 {[%clk 0:00:04.7]} 0-1

[Event "*** Titled Tuesday Blitz"]
[Site "Chess.com"]
[Date "2020.04.07"]
[Round "9"]
[White "GMHess"]
[Black "Noam_Vitenberg"]
[Result "1-0"]
[WhiteElo "2771"]
[BlackElo "2476"]
[TimeControl "180+1"]
[EndTime "14:47:53 PDT"]
[Termination "GMHess won on time"]

1. b3 {[%clk 0:02:53.5]} 1... d5 {[%clk 0:02:55.3]} 2. Bb2 {[%clk 0:02:54.4]}
2... e6 {[%clk 0:02:52.3]} 3. d3 {[%clk 0:02:49.5]} 3... Nf6 {[%clk 0:02:46.4]}
4. Nd2 {[%clk 0:02:49.8]} 4... Be7 {[%clk 0:02:45.8]} 5. e4 {[%clk 0:02:50.2]}
5... O-O {[%clk 0:02:45.1]} 6. g4 {[%clk 0:02:48.4]} 6... b6 {[%clk 0:02:35.2]}
7. Bg2 {[%clk 0:02:48]} 7... Bb7 {[%clk 0:02:34.6]} 8. Qe2 {[%clk 0:02:44.2]}
8... c5 {[%clk 0:02:10.2]} 9. O-O-O {[%clk 0:02:43.7]} 9... a5 {[%clk
0:02:08.2]} 10. f4 {[%clk 0:02:32.8]} 10... a4 {[%clk 0:02:04.1]} 11. e5 {[%clk
0:02:30.3]} 11... Nfd7 {[%clk 0:01:56.8]} 12. f5 {[%clk 0:02:30.5]} 12... axb3
{[%clk 0:01:44.9]} 13. axb3 {[%clk 0:02:31.4]} 13... Nc6 {[%clk 0:01:31.5]} 14.
Nh3 {[%clk 0:02:12.8]} 14... Ndxe5 {[%clk 0:01:13.8]} 15. fxe6 {[%clk
0:01:47.6]} 15... f6 {[%clk 0:01:03.3]} 16. Nf4 {[%clk 0:01:46.8]} 16... Nb4
{[%clk 0:00:53.3]} 17. c3 {[%clk 0:01:17]} 17... Na2+ {[%clk 0:00:32.2]} 18. Kc2
{[%clk 0:01:17]} 18... d4 {[%clk 0:00:26.8]} 19. Bxb7 {[%clk 0:01:15.9]} 19...
dxc3 {[%clk 0:00:26.6]} 20. Nd5 {[%clk 0:00:37.3]} 20... Ra7 {[%clk 0:00:14.5]}
21. Nxc3 {[%clk 0:00:15.9]} 21... Nb4+ {[%clk 0:00:13.2]} 22. Kb1 {[%clk
0:00:14.2]} 22... Rxb7 {[%clk 0:00:13]} 23. Nc4 {[%clk 0:00:14.6]} 23... Nec6
{[%clk 0:00:07.9]} 24. Qe4 {[%clk 0:00:10.1]} 24... Ra7 {[%clk 0:00:06.9]} 25.
d4 {[%clk 0:00:05.8]} 25... Nxd4 {[%clk 0:00:06.1]} 26. Nb5 {[%clk 0:00:06.4]}
26... Qa8 {[%clk 0:00:03.1]} 27. Qxa8 {[%clk 0:00:06.1]} 27... Raxa8 {[%clk
0:00:03.7]} 28. Nxd4 {[%clk 0:00:05.2]} 28... cxd4 {[%clk 0:00:04.6]} 29. Rxd4
{[%clk 0:00:05.8]} 29... Rfd8 {[%clk 0:00:04.7]} 30. Rhd1 {[%clk 0:00:05.5]}
30... Rxd4 {[%clk 0:00:02]} 31. Rxd4 {[%clk 0:00:06.4]} 31... b5 {[%clk
0:00:02.8]} 32. Rd7 {[%clk 0:00:03.9]} 32... Kf8 {[%clk 0:00:01.6]} 33. Nb6
{[%clk 0:00:03.7]} 33... Rd8 {[%clk 0:00:01.6]} 34. Rb7 {[%clk 0:00:02.6]} 34...
Re8 {[%clk 0:00:01.8]} 35. Nd7+ {[%clk 0:00:02.7]} 35... Kg8 {[%clk 0:00:01.8]}
36. Rxb5 {[%clk 0:00:03.6]} 36... Nc6 {[%clk 0:00:01.8]} 37. Rb6 {[%clk
0:00:03.6]} 37... Nd8 {[%clk 0:00:02.2]} 38. Bd4 {[%clk 0:00:02.2]} 38... Bf8
{[%clk 0:00:02.1]} 39. Nxf8 {[%clk 0:00:02.5]} 39... Kxf8 {[%clk 0:00:03]} 40.
Bc5+ {[%clk 0:00:02.8]} 40... Kg8 {[%clk 0:00:03.2]} 41. e7 {[%clk 0:00:03.7]}
41... Nf7 {[%clk 0:00:03]} 42. b4 {[%clk 0:00:04]} 42... Ne5 {[%clk 0:00:03.1]}
43. Rd6 {[%clk 0:00:04.4]} 43... Nc4 {[%clk 0:00:02.7]} 44. Rd8 {[%clk
0:00:04.6]} 44... Kf7 {[%clk 0:00:02.8]} 45. b5 {[%clk 0:00:05.2]} 1-0

[Event "*** Titled Tuesday Blitz"]
[Site "Chess.com"]
[Date "2020.04.07"]
[Round "9"]
[White "Dinamo81"]
[Black "sergiochess83"]
[Result "1-0"]
[WhiteElo "2727"]
[BlackElo "2822"]
[TimeControl "180+1"]
[EndTime "14:47:58 PDT"]
[Termination "Dinamo81 won on time"]

1. e4 {[%clk 0:03:00.9]} 1... e5 {[%clk 0:02:56.8]} 2. Nf3 {[%clk 0:02:58.5]}
2... Nc6 {[%clk 0:02:56.7]} 3. d4 {[%clk 0:02:58.4]} 3... exd4 {[%clk
0:02:56.3]} 4. Bc4 {[%clk 0:02:58.7]} 4... Nf6 {[%clk 0:02:49.3]} 5. e5 {[%clk
0:02:57.3]} 5... Ne4 {[%clk 0:02:47.3]} 6. Qe2 {[%clk 0:02:53.3]} 6... Nc5
{[%clk 0:02:40.6]} 7. O-O {[%clk 0:02:50.3]} 7... Be7 {[%clk 0:02:35.2]} 8. Rd1
{[%clk 0:02:45.2]} 8... Ne6 {[%clk 0:02:30]} 9. c3 {[%clk 0:02:40.1]} 9... d5
{[%clk 0:02:18.2]} 10. Bb5 {[%clk 0:02:37.1]} 10... dxc3 {[%clk 0:02:05.6]} 11.
Nxc3 {[%clk 0:02:34.3]} 11... d4 {[%clk 0:02:06]} 12. Ne4 {[%clk 0:02:23.9]}
12... O-O {[%clk 0:01:58]} 13. a3 {[%clk 0:02:17.5]} 13... a6 {[%clk 0:01:49.7]}
14. Bd3 {[%clk 0:02:13.1]} 14... Na5 {[%clk 0:01:29.8]} 15. Qc2 {[%clk
0:01:53.4]} 15... c5 {[%clk 0:01:25.3]} 16. Bd2 {[%clk 0:01:30.5]} 16... b5
{[%clk 0:00:49.9]} 17. Nd6 {[%clk 0:01:08.9]} 17... h6 {[%clk 0:00:24.6]} 18.
Be4 {[%clk 0:00:54.8]} 18... Rb8 {[%clk 0:00:18.2]} 19. b4 {[%clk 0:00:54.3]}
19... Bxd6 {[%clk 0:00:17]} 20. exd6 {[%clk 0:00:53.3]} 20... Nc4 {[%clk
0:00:17.2]} 21. bxc5 {[%clk 0:00:49.1]} 21... Nxc5 {[%clk 0:00:18.1]} 22. Nxd4
{[%clk 0:00:43.4]} 22... Nxe4 {[%clk 0:00:16.9]} 23. Qxe4 {[%clk 0:00:41.6]}
23... Bb7 {[%clk 0:00:16.8]} 24. Qg4 {[%clk 0:00:26.8]} 24... Nxd2 {[%clk
0:00:14.3]} 25. Rxd2 {[%clk 0:00:26.1]} 25... Qxd6 {[%clk 0:00:13.8]} 26. Qxg7+
{[%clk 0:00:22.3]} 26... Kxg7 {[%clk 0:00:13.3]} 27. Nf5+ {[%clk 0:00:22.9]}
27... Kg6 {[%clk 0:00:12.5]} 28. Nxd6 {[%clk 0:00:23.1]} 28... Rbd8 {[%clk
0:00:11.4]} 29. Rad1 {[%clk 0:00:22.1]} 29... Bc6 {[%clk 0:00:11.5]} 30. Rd4
{[%clk 0:00:22.3]} 30... Rd7 {[%clk 0:00:10.5]} 31. Nf5 {[%clk 0:00:16.1]} 31...
Rxd4 {[%clk 0:00:09.2]} 32. Nxd4 {[%clk 0:00:14.4]} 32... Rd8 {[%clk 0:00:09.1]}
33. f3 {[%clk 0:00:14.4]} 33... a5 {[%clk 0:00:07.9]} 34. Kf2 {[%clk 0:00:14.6]}
34... Be8 {[%clk 0:00:06.9]} 35. Ke3 {[%clk 0:00:14.4]} 35... Rc8 {[%clk
0:00:07.4]} 36. Kd3 {[%clk 0:00:13.3]} 36... Rc4 {[%clk 0:00:05.8]} 37. Rb1
{[%clk 0:00:12.5]} 37... Ra4 {[%clk 0:00:05.9]} 38. Nxb5 {[%clk 0:00:11.3]}
38... Bxb5+ {[%clk 0:00:05.4]} 39. Rxb5 {[%clk 0:00:12]} 39... Rxa3+ {[%clk
0:00:06.3]} 40. Ke4 {[%clk 0:00:12.1]} 40... Ra2 {[%clk 0:00:06.6]} 41. g4
{[%clk 0:00:11.3]} 41... Rxh2 {[%clk 0:00:04.8]} 42. Rxa5 {[%clk 0:00:10.8]}
42... Re2+ {[%clk 0:00:04.7]} 43. Kf4 {[%clk 0:00:10.5]} 43... f6 {[%clk
0:00:04.9]} 44. Ra6 {[%clk 0:00:09.9]} 44... Re1 {[%clk 0:00:04.6]} 45. Ra5
{[%clk 0:00:10]} 45... Re2 {[%clk 0:00:01.8]} 46. Ra6 {[%clk 0:00:10]} 1-0

[Event "*** Titled Tuesday Blitz"]
[Site "Chess.com"]
[Date "2020.04.07"]
[Round "9"]
[White "Kaua18"]
[Black "nomessi"]
[Result "1-0"]
[WhiteElo "2193"]
[BlackElo "2314"]
[TimeControl "180+1"]
[EndTime "14:47:58 PDT"]
[Termination "Kaua18 won on time"]

1. e4 {[%clk 0:03:00.9]} 1... e5 {[%clk 0:02:05.1]} 2. Nf3 {[%clk 0:03:00.2]}
2... Nf6 {[%clk 0:02:04.8]} 3. d4 {[%clk 0:03:00.2]} 3... Nxe4 {[%clk
0:02:04.1]} 4. Bd3 {[%clk 0:03:00.7]} 4... d5 {[%clk 0:02:03.1]} 5. dxe5 {[%clk
0:02:58]} 5... Be7 {[%clk 0:01:59.9]} 6. O-O {[%clk 0:02:57.5]} 6... O-O {[%clk
0:01:59]} 7. Re1 {[%clk 0:02:55.9]} 7... Nc5 {[%clk 0:01:55]} 8. Bf1 {[%clk
0:02:55.8]} 8... Bg4 {[%clk 0:01:53]} 9. Nc3 {[%clk 0:02:53.5]} 9... c6 {[%clk
0:01:48.4]} 10. Bf4 {[%clk 0:02:47.3]} 10... Nbd7 {[%clk 0:01:44.6]} 11. h3
{[%clk 0:02:47]} 11... Bh5 {[%clk 0:01:42.1]} 12. g4 {[%clk 0:02:42.9]} 12...
Bg6 {[%clk 0:01:40.9]} 13. Bg3 {[%clk 0:02:41.2]} 13... Ne6 {[%clk 0:01:39.3]}
14. h4 {[%clk 0:02:39.6]} 14... h5 {[%clk 0:01:35.1]} 15. Nh2 {[%clk 0:02:32.9]}
15... Bxh4 {[%clk 0:01:29.4]} 16. gxh5 {[%clk 0:02:33]} 16... Bxg3 {[%clk
0:01:28.4]} 17. fxg3 {[%clk 0:02:33.9]} 17... Bh7 {[%clk 0:01:23.7]} 18. Qg4
{[%clk 0:02:32.5]} 18... Kh8 {[%clk 0:01:19.1]} 19. Nf3 {[%clk 0:02:26.2]} 19...
Ndc5 {[%clk 0:01:13.7]} 20. b4 {[%clk 0:01:58.3]} 20... Ne4 {[%clk 0:01:11.5]}
21. Nxe4 {[%clk 0:01:58.1]} 21... Bxe4 {[%clk 0:01:10.6]} 22. Bd3 {[%clk
0:01:50.5]} 22... Qb6+ {[%clk 0:01:06.3]} 23. Kg2 {[%clk 0:01:50]} 23... Bxf3+
{[%clk 0:00:57.3]} 24. Qxf3 {[%clk 0:01:37.1]} 24... Qxb4 {[%clk 0:00:47.5]} 25.
Qf5 {[%clk 0:01:29.4]} 25... Qd2+ {[%clk 0:00:46.9]} 26. Re2 {[%clk 0:01:11.8]}
26... Qh6 {[%clk 0:00:43.9]} 27. Rb1 {[%clk 0:01:10.3]} 27... Nd4 {[%clk
0:00:39.3]} 28. Qg4 {[%clk 0:00:58.8]} 28... Nxe2 {[%clk 0:00:36.9]} 29. Qxe2
{[%clk 0:00:59.7]} 29... b5 {[%clk 0:00:36.3]} 30. a4 {[%clk 0:00:59.2]} 30...
a6 {[%clk 0:00:36]} 31. Qf2 {[%clk 0:00:55]} 31... Rae8 {[%clk 0:00:32.3]} 32.
axb5 {[%clk 0:00:53.7]} 32... axb5 {[%clk 0:00:30]} 33. Qc5 {[%clk 0:00:47.7]}
33... Kg8 {[%clk 0:00:26.5]} 34. Re1 {[%clk 0:00:41.5]} 34... Re6 {[%clk
0:00:21.8]} 35. Bf5 {[%clk 0:00:34.8]} 35... Qd2+ {[%clk 0:00:18.5]} 36. Kf1
{[%clk 0:00:35.1]} 36... Ree8 {[%clk 0:00:14.9]} 37. Qxc6 {[%clk 0:00:27.3]}
37... d4 {[%clk 0:00:13]} 38. Qxb5 {[%clk 0:00:25.2]} 38... Rb8 {[%clk
0:00:05.6]} 39. Qd3 {[%clk 0:00:25.2]} 39... Qg5 {[%clk 0:00:04.2]} 40. Kg2
{[%clk 0:00:22.2]} 1-0

[Event "*** Titled Tuesday Blitz"]
[Site "Chess.com"]
[Date "2020.04.07"]
[Round "9"]
[White "mbojan"]
[Black "Mikhail_Golubev"]
[Result "1-0"]
[WhiteElo "2696"]
[BlackElo "2531"]
[TimeControl "180+1"]
[EndTime "14:48:03 PDT"]
[Termination "mbojan won on time"]

1. e4 {[%clk 0:03:00.9]} 1... c5 {[%clk 0:02:59.5]} 2. Nf3 {[%clk 0:03:01]} 2...
d6 {[%clk 0:02:59.8]} 3. d4 {[%clk 0:03:01.1]} 3... Nf6 {[%clk 0:02:59.3]} 4.
Nc3 {[%clk 0:03:00.2]} 4... cxd4 {[%clk 0:02:59.5]} 5. Nxd4 {[%clk 0:03:01.1]}
5... g6 {[%clk 0:02:59.3]} 6. Be3 {[%clk 0:03:00.4]} 6... Bg7 {[%clk 0:02:59.4]}
7. f3 {[%clk 0:03:00.6]} 7... Nc6 {[%clk 0:02:59.5]} 8. Qd2 {[%clk 0:03:01]}
8... O-O {[%clk 0:02:59.6]} 9. O-O-O {[%clk 0:03:01.2]} 9... d5 {[%clk
0:02:59.1]} 10. Nxc6 {[%clk 0:03:01.4]} 10... bxc6 {[%clk 0:02:58.3]} 11. Bh6
{[%clk 0:03:01.5]} 11... Bxh6 {[%clk 0:02:57.6]} 12. Qxh6 {[%clk 0:03:02.4]}
12... Rb8 {[%clk 0:02:57.2]} 13. h4 {[%clk 0:03:02.2]} 13... Qb6 {[%clk
0:02:40.5]} 14. b3 {[%clk 0:02:39.4]} 14... Qb4 {[%clk 0:02:33.3]} 15. Kb2
{[%clk 0:02:35.3]} 15... d4 {[%clk 0:02:06]} 16. Ne2 {[%clk 0:02:26.1]} 16... c5
{[%clk 0:01:50.5]} 17. h5 {[%clk 0:02:25.6]} 17... c4 {[%clk 0:01:23.6]} 18.
Rxd4 {[%clk 0:02:24.9]} 18... c3+ {[%clk 0:01:16.1]} 19. Kb1 {[%clk 0:02:24.9]}
19... Qa3 {[%clk 0:01:12.4]} 20. Qc1 {[%clk 0:02:24.6]} 20... Qxc1+ {[%clk
0:01:09.5]} 21. Kxc1 {[%clk 0:02:25.5]} 21... Nxh5 {[%clk 0:01:09.4]} 22. g4
{[%clk 0:02:22.8]} 22... e5 {[%clk 0:01:00.1]} 23. Rd5 {[%clk 0:01:59.9]} 23...
Nf4 {[%clk 0:00:37.1]} 24. Nxf4 {[%clk 0:01:59.8]} 24... exf4 {[%clk 0:00:36.9]}
25. Rc5 {[%clk 0:01:58]} 25... Be6 {[%clk 0:00:34.8]} 26. Rxc3 {[%clk
0:01:57.6]} 26... Rbc8 {[%clk 0:00:34.4]} 27. Rxc8 {[%clk 0:01:56.6]} 27... Rxc8
{[%clk 0:00:34.3]} 28. Bd3 {[%clk 0:01:50.9]} 28... Kg7 {[%clk 0:00:34.1]} 29.
Kd2 {[%clk 0:01:50.5]} 29... h5 {[%clk 0:00:29.2]} 30. gxh5 {[%clk 0:01:46.6]}
30... Rh8 {[%clk 0:00:28.7]} 31. h6+ {[%clk 0:01:24.6]} 31... Rxh6 {[%clk
0:00:27.9]} 32. Rxh6 {[%clk 0:01:25.5]} 32... Kxh6 {[%clk 0:00:28.1]} 33. c4
{[%clk 0:01:26.2]} 33... Kg5 {[%clk 0:00:28]} 34. Ke2 {[%clk 0:01:23]} 34... Kh4
{[%clk 0:00:25.9]} 35. Kf2 {[%clk 0:01:22.3]} 35... Kg5 {[%clk 0:00:22]} 36. c5
{[%clk 0:00:47.2]} 36... Kf6 {[%clk 0:00:20.5]} 37. Ke2 {[%clk 0:00:22.9]} 37...
Ke5 {[%clk 0:00:20]} 38. Kd2 {[%clk 0:00:21.2]} 38... Kd4 {[%clk 0:00:17.4]} 39.
b4 {[%clk 0:00:20.7]} 39... Bxa2 {[%clk 0:00:15.1]} 40. c6 {[%clk 0:00:21.2]}
40... Be6 {[%clk 0:00:14.3]} 41. c7 {[%clk 0:00:19.6]} 41... g5 {[%clk
0:00:11.1]} 42. Ba6 {[%clk 0:00:19.4]} 42... g4 {[%clk 0:00:11.2]} 43. fxg4
{[%clk 0:00:19.5]} 43... Bxg4 {[%clk 0:00:11.1]} 44. c8=Q {[%clk 0:00:17.9]}
44... Bxc8 {[%clk 0:00:10.6]} 45. Bxc8 {[%clk 0:00:18.8]} 45... f3 {[%clk
0:00:08.1]} 46. Bb7 {[%clk 0:00:15.8]} 46... Kc4 {[%clk 0:00:05.5]} 47. Ke3
{[%clk 0:00:16]} 47... Kxb4 {[%clk 0:00:05.8]} 48. Kxf3 {[%clk 0:00:16.4]} 48...
Kc5 {[%clk 0:00:05.9]} 49. Kf4 {[%clk 0:00:16.6]} 49... a5 {[%clk 0:00:02]} 50.
Kf5 {[%clk 0:00:15.5]} 1-0